bitfinex/quotes_SOLUSD_20260223
["timestamp","ask_amount","ask_price","bid_price","bid_amount"]
[1771882909168,2.45603119,78.597,78.571,2.61112576]
[1771882911163,0.2,78.6,78.581,2.61112576]
[1771882911363,31.90288639,78.61,78.591,2.61112576]
[1771882911364,0.1,78.61,78.591,2.61112576]
[1771882913769,0.1,78.61,78.593,2.61112576]
[1771882914266,0.1,78.62,78.602,2.61112576]
[1771882914764,0.1,78.62,78.603,12.72216073]
[1771882914975,0.1,78.62,78.604,2.61112576]
[1771882917168,0.1,78.62,78.606,2.61112576]
[1771882917373,2.45603119,78.619,78.605,15.33296279]
[1771882917752,0.1,78.62,78.606,2.61112576]
[1771882918668,2.55603119,78.62,78.606,2.61112576]
[1771882920667,2.55603119,78.62,78.607,12.72151335]
[1771882921863,2.55603119,78.62,78.604,2.61112576]
[1771882922181,0.1,78.62,78.604,2.61112576]
[1771882922959,0.1,78.62,78.605,15.33296279]
[1771882923365,0.1,78.62,78.606,2.61112576]
[1771882925370,0.1,78.62,78.611,2.61112576]
[1771882925570,0.1,78.63,78.611,2.61112576]
[1771882925769,0.1,78.64,78.607,12.72151335]
[1771882925770,0.1,78.64,78.621,2.61112576]
[1771882926169,12.71456585,78.65,78.622,2.61112576]
[1771882927660,3.69383402,78.656,78.631,2.61112576]
[1771882928264,2.45603119,78.655,78.631,2.61112576]
[1771882929672,15.16994275,78.654,78.631,2.61112576]
[1771882930280,50.84144663,78.676,78.6,5.48474647]
[1771882930281,12.71148737,78.669,78.641,2.61112576]
[1771882930570,15.26741485,78.67,78.651,2.61112576]
[1771882931489,0.1,78.67,78.651,2.61112576]
[1771882932182,0.1,78.67,78.652,2.61112576]
[1771882932367,2.45603119,78.684,78.662,2.61112576]
[1771882933390,2.45603119,78.684,78.652,2.61112576]
[1771882934091,2.45603119,78.682,78.654,2.61112576]
[1771882937075,2.45603119,78.68,78.656,2.61112576]
[1771882937281,2.45603119,78.68,78.668,0.43752174]
[1771882939370,2.45603119,78.68,78.661,2.61112576]
[1771882939578,0.2,78.69,78.671,2.64736738]
[1771882940388,12.70825655,78.689,78.671,2.64736738]
[1771882941486,0.2,78.69,78.672,12.71100264]
[1771882941692,0.2,78.7,78.681,2.46239824]
[1771882941874,0.1,78.71,78.701,2.46239824]
[1771882942694,0.1,78.71,78.672,44.48850924]
[1771882942695,0.1,78.71,78.69,5.48474647]
[1771882942997,0.1,78.71,78.671,2.46239824]
[1771882942998,2.41226996,78.699,78.671,2.46239824]
[1771882943787,12.70680322,78.698,78.673,2.46239824]
[1771882943984,15.11907318,78.698,78.673,2.46239824]
[1771882946095,12.70680322,78.698,78.673,2.46239824]
[1771882946393,12.70680322,78.698,78.662,31.78129781]
[1771882946394,5.58474647,78.71,78.681,2.46239824]
[1771882946698,0.1,78.71,78.681,2.46239824]
[1771882947195,0.1,78.71,78.691,2.46239824]
[1771882948295,0.1,78.72,78.693,2.46239824]
[1771882948485,0.1,78.72,78.711,2.46239824]
[1771882949378,12.70149903,78.731,78.711,2.46239824]
[1771882949804,2.41226996,78.729,78.701,2.46239824]
[1771882950097,12.70149903,78.731,78.693,2.46239824]
[1771882950098,2.41226996,78.719,78.693,2.46239824]
[1771882950283,2.41226996,78.717,78.693,2.46239824]
[1771882950890,2.41226996,78.717,78.692,12.70768866]
[1771882951085,2.41226996,78.709,78.679,2.46239824]
[1771882951296,2.41226996,78.709,78.681,2.46239824]
[1771882951699,2.41226996,78.719,78.691,2.46239824]
[1771882952296,2.41226996,78.736,78.701,2.46239824]
[1771882952489,2.41226996,78.734,78.701,2.46239824]
[1771882952892,5.46137599,78.73,78.701,2.46239824]
[1771882953102,2.41226996,78.729,78.701,2.46239824]
[1771882953911,12.70018669,78.739,78.711,2.46239824]
[1771882954104,0.1,78.74,78.721,2.46239824]
[1771882954309,0.1,78.74,78.723,2.46239824]
[1771882954505,0.1,78.75,78.722,12.70292929]
[1771882954506,0.1,78.75,78.731,2.46239824]
[1771882954705,0.1,78.75,78.722,44.46025252]
[1771882954706,0.1,78.76,78.741,2.46239824]
[1771882955408,18.25826045,78.76,78.741,2.46239824]
[1771882955711,20.67053041,78.76,78.731,2.46239824]
[1771882956288,2.51226996,78.76,78.731,2.46239824]
[1771882956510,3.69383402,78.775,78.75,5.46137599]
[1771882956713,3.69383402,78.775,78.732,12.70131585]
[1771882956714,0.2,98.598,78.77,5.46137599]
[1771882956715,12.68488215,78.834,78.77,5.46137599]
[1771882956928,2.41226996,78.829,78.79,5.46137599]
[1771882957219,2.41226996,78.799,78.757,2.46239824]
[1771882957412,2.41226996,78.789,78.757,2.46239824]
[1771882958093,5.46137599,78.79,78.757,2.46239824]
[1771882958295,5.46137599,78.79,78.761,2.46239824]
[1771882958506,5.46137599,78.79,78.763,2.46239824]
[1771882959012,7.87364595,78.79,78.763,2.46239824]
[1771882959604,5.46137599,78.79,78.763,2.46239824]
[1771882959809,2.41226996,78.779,78.756,2.46239824]
[1771882960000,5.46137599,78.78,78.756,2.46239824]
[1771882960200,2.41226996,78.787,78.756,2.46239824]
[1771882960407,5.46137599,78.79,78.761,2.46239824]
[1771882960606,5.46137599,78.79,78.763,2.46239824]
[1771882961005,2.41226996,78.798,78.763,2.46239824]
[1771882961314,5.46137599,78.79,78.763,2.46239824]
[1771882961503,2.41226996,78.798,78.763,2.46239824]
[1771882961697,2.41226996,78.798,78.739,50.80060827]
[1771882961698,2.41226996,78.766,78.709,2.46239824]
[1771882962020,2.41226996,78.759,78.721,2.46239824]
[1771882962224,5.46137599,78.75,78.721,2.46239824]
[1771882962602,5.46137599,78.75,78.723,2.46239824]
[1771882963113,12.69857395,78.749,78.723,2.46239824]
[1771882963322,2.41226996,78.749,78.723,2.46239824]
[1771882964114,5.46137599,78.74,78.723,2.46239824]
[1771882964826,5.46137599,78.74,78.724,12.70260657]
[1771882965321,5.46137599,78.74,78.723,2.46239824]
[1771882965624,2.41226996,78.729,78.696,2.46239824]
[1771882965810,5.46137599,78.74,78.711,2.46239824]
[1771882966827,35.43248981,78.769,78.71,5.46137599]
[1771882966828,5.46137599,78.75,78.717,2.46239824]
[1771882967206,14.62498644,78.75,78.717,2.46239824]
[1771882969329,14.62498644,78.75,78.719,2.58727196]
[1771882971317,2.56789113,78.757,78.721,2.58727196]
[1771882971530,14.62498644,78.75,78.721,2.58727196]
[1771882971914,14.62498644,78.74,78.721,2.58727196]
[1771882972720,2.56789113,78.749,78.721,2.58727196]
[1771882973115,14.62498644,78.74,78.722,12.70292929]
[1771882973311,14.62498644,78.73,78.708,2.58727196]
[1771882975529,14.62498644,78.73,78.709,12.70502737]
[1771882977730,14.62498644,78.73,78.709,2.58727196]
[1771882978918,12.69889646,78.747,78.709,2.58727196]
[1771882979110,14.62498644,78.74,78.711,2.58727196]
[1771882980934,12.70018669,78.739,78.713,2.58727196]
[1771882981108,14.62498644,78.73,78.706,2.58727196]
[1771882981309,2.56789113,78.719,78.69,12.70797522]
[1771882981517,14.62498644,78.71,78.691,2.58727196]
[1771882982424,14.62498644,78.7,78.68,12.90955518]
[1771882982626,2.56789113,78.703,78.68,12.90955518]
[1771882983525,2.56789113,78.703,78.681,2.58727196]
[1771882984715,2.56789113,78.701,78.68,0.2]
[1771882985021,2.56789113,78.699,78.68,0.2]
[1771882986037,2.56789113,78.699,78.662,2.58727196]
[1771882987226,15.26193962,78.698,78.664,2.58727196]
[1771882987620,2.5551364,78.698,78.664,2.58727196]
[1771882987820,12.70623736,78.702,78.664,2.58727196]
[1771882988019,12.70623736,78.702,78.663,44.49359927]
[1771882988020,12.70623736,78.702,78.671,2.58727196]
[1771882988337,2.55615297,78.701,78.671,2.58727196]
[1771882989424,2.55712245,78.699,78.654,31.78460513]
[1771882989737,3.69383402,78.716,78.654,31.78460513]
[1771882989738,2.56789113,78.754,78.691,0.28432314]
[1771882989917,2.56789113,78.754,78.74,5.46720439]
[1771882990117,2.56789113,78.754,78.73,5.46720439]
[1771882990739,2.56789113,78.754,78.71,5.36086188]
[1771882990740,2.56789113,78.754,78.74,5.46720439]
[1771882991238,2.56789113,78.754,78.741,12.69986411]
[1771882992145,12.69062386,78.799,78.741,44.44952438]
[1771882992438,2.56789113,78.798,78.76,14.61652777]
[1771882992634,2.56789113,78.795,78.76,14.61652777]
[1771882993220,2.56789113,78.793,78.761,12.69663919]
[1771882994031,2.56789113,78.793,78.77,14.61652777]
[1771882994436,2.56789113,78.793,78.744,2.69935123]
[1771882994615,2.56789113,78.793,78.751,2.69935123]
[1771882994818,2.56789113,78.793,78.758,2.69935123]
[1771882995016,2.56789113,78.793,78.761,2.69935123]
[1771882995229,3.69383402,78.82,78.781,2.69935123]
[1771882995433,12.68775505,78.817,78.781,2.69935123]
[1771882995844,0.02524314,78.811,78.781,2.69935123]
[1771882996045,12.71066138,78.831,78.791,2.69935123]
[1771882996340,12.71066138,78.831,78.8,14.61652777]
[1771882996526,3.69383402,78.83,78.8,14.61652777]
[1771882997124,3.69383402,78.83,78.781,2.69935123]
[1771882997346,0.03758293,78.807,78.765,2.69935123]
[1771882997720,3.69383402,78.807,78.765,2.69935123]
[1771882997926,3.69383402,78.808,78.744,44.44783094]
[1771882997927,0.06190996,78.796,78.757,2.69935123]
[1771882998127,0.06190996,78.796,78.751,2.69935123]
[1771882999347,0.07389379,78.792,78.753,2.69935123]
[1771883000543,0.09741334,78.786,78.742,12.69966695]
[1771883000750,0.09741334,78.786,78.743,2.69935123]
[1771883000929,14.61652777,78.78,78.743,2.69935123]
[1771883001246,11.9380783,78.78,78.743,2.69935123]
[1771883001423,12.69373817,78.779,78.744,12.69938027]
[1771883002651,14.61652777,78.77,78.743,2.69935123]
[1771883002851,14.61652777,78.77,78.732,2.7538443]
[1771883003051,14.61652777,78.78,78.74,14.61652777]
[1771883003230,14.61652777,78.78,78.741,2.7538443]
[1771883003856,14.65062317,78.78,78.742,12.69970282]
[1771883004024,0.0340954,78.779,78.743,2.7538443]
[1771883004226,12.72783357,78.779,78.743,2.7538443]
[1771883004426,0.0340954,78.778,78.743,2.7538443]
[1771883004751,0.0340954,78.769,78.736,2.7538443]
[1771883006048,0.05621733,78.768,78.737,12.70050929]
[1771883007529,0.05621733,78.768,78.737,15.45435359]
[1771883008332,0.05621733,78.768,78.738,2.7538443]
[1771883008531,0.05621733,78.768,78.731,12.70146823]
[1771883008532,0.05621733,78.768,78.732,2.7538443]
[1771883011039,0.10926611,78.759,78.723,12.70273752]
[1771883011240,0.10926611,78.759,78.71,14.61822057]
[1771883011241,14.61822057,78.75,78.712,2.7538443]
[1771883011431,0.10926611,78.749,78.712,2.7538443]
[1771883013357,0.10926611,78.749,78.69,5.36086188]
[1771883013358,14.61822057,78.72,78.675,2.8186497]
[1771883013567,14.61822057,78.68,78.66,0.2]
[1771883013730,14.61822057,78.67,78.66,0.2]
[1771883013935,14.61822057,78.7,78.661,2.8186497]
[1771883014653,14.61822057,78.7,78.662,2.8186497]
[1771883016255,14.61822057,78.7,78.66,14.81822057]
[1771883016256,14.61822057,78.69,78.664,2.8186497]
[1771883017455,14.61822057,78.69,78.663,12.71245693]
[1771883017456,14.61822057,78.67,78.66,0.2]
[1771883017649,14.61822057,78.68,78.662,2.8186497]
[1771883019353,27.32808813,78.68,78.662,2.8186497]
[1771883019559,14.61822057,78.67,78.662,2.8186497]
[1771883019734,14.61822057,78.68,78.662,2.8186497]
[1771883020139,14.61822057,78.67,78.66,0.2]
[1771883020758,12.71148737,78.669,78.649,2.8186497]
[1771883020940,14.61822057,78.66,78.649,2.8186497]
[1771883022957,2.6710717,78.659,78.63,0.2]
[1771883023143,14.61822057,78.65,78.63,0.2]
[1771883023547,14.61822057,78.64,78.63,0.2]
[1771883024456,14.61822057,78.64,78.626,12.71842566]
[1771883024657,14.61822057,78.64,78.603,5.36086188]
[1771883024870,14.61822057,78.63,78.603,5.36086188]
[1771883025170,14.61822057,78.63,78.608,2.62010456]
[1771883026369,14.61822057,78.63,78.61,2.62010456]
[1771883026756,14.61822057,78.64,78.61,2.62010456]
[1771883026963,14.61822057,78.65,78.617,2.62010456]
[1771883027947,14.61822057,78.64,78.617,2.62010456]
[1771883028148,17.27259737,78.65,78.619,2.8413199]
[1771883028551,14.61822057,78.65,78.619,2.8413199]
[1771883029062,14.61822057,78.65,78.62,2.8413199]
[1771883029265,2.6543768,78.653,78.62,2.8413199]
[1771883029970,2.6543768,78.653,78.62,2.6413199]
[1771883030969,2.6543768,78.653,78.621,44.51736812]
[1771883031962,2.6543768,78.653,78.622,2.73303802]
[1771883034373,2.6543768,78.673,78.631,2.76134199]
[1771883034556,14.61822057,78.67,78.641,2.76134199]
[1771883035172,0.2,78.653,78.641,2.76134199]
[1771883035557,0.2,78.653,78.643,2.77523231]
[1771883035960,0.2,78.653,78.643,2.57523231]
[1771883036961,0.2,78.653,78.643,2.37523231]
[1771883038972,0.2,78.653,78.644,12.7155282]
[1771883039174,14.61822057,78.65,78.628,2.42991884]
[1771883039673,17.27259737,78.65,78.628,2.42991884]
[1771883040871,2.6543768,78.649,78.627,12.71827743]
[1771883041055,2.6543768,78.639,78.617,12.71981438]
[1771883041259,2.6543768,78.639,78.607,2.4566661]
[1771883041464,2.6543768,78.629,78.607,2.4566661]
[1771883042072,2.6543768,78.637,78.607,2.4566661]
[1771883043268,2.6543768,78.637,78.608,15.20407966]
[1771883043651,2.6543768,78.637,78.608,12.72135151]
[1771883043851,2.6543768,78.637,78.609,2.48272815]
[1771883044056,0.2,78.63,78.609,2.48272815]
[1771883045562,0.2,78.63,78.61,12.72102785]
[1771883046182,0.2,78.63,78.611,2.52072046]
[1771883046782,0.2,78.63,78.612,12.72070421]
[1771883048378,0.2,78.63,78.613,2.54533272]
[1771883049287,0.4,78.63,78.614,12.72038059]
[1771883051288,0.4,78.63,78.614,12.52038059]
[1771883051470,3.0543768,78.63,78.608,44.5247303]
[1771883052495,3.0543768,78.63,78.586,2.56333795]
[1771883052496,2.6543768,78.629,78.586,2.56333795]
[1771883052673,2.6543768,78.619,78.591,2.56333795]
[1771883053579,2.6543768,78.619,78.593,2.56772977]
[1771883055774,2.6543768,78.619,78.595,2.57637774]
[1771883056573,2.8543768,78.619,78.595,2.57637774]
[1771883056886,15.01822057,78.63,78.595,2.57637774]
[1771883057092,0.4,78.63,78.611,2.584807]
[1771883057588,0.4,78.63,78.611,2.384807]
[1771883058480,0.4,78.63,78.612,12.72070421]
[1771883060386,0.4,78.63,78.612,14.92700984]
[1771883063195,2.77947753,78.619,78.591,2.2186727]
[1771883063675,2.77947753,78.619,78.59,12.72426517]
[1771883063879,2.77947753,78.609,78.59,12.72426517]
[1771883065277,2.77947753,78.609,78.584,44.5383284]
[1771883066282,2.77947753,78.609,78.584,46.76903436]
[1771883067192,2.77947753,78.609,78.585,2.2346343]
[1771883068801,2.77947753,78.609,78.586,12.72491283]
[1771883069701,2.77947753,78.599,78.578,2.24230011]
[1771883070093,2.77947753,78.599,78.576,12.72653227]
[1771883070507,2.77947753,78.589,78.541,2.85889595]
[1771883070712,14.67554887,78.57,78.541,2.85889595]
[1771883070886,31.81088954,78.59,78.551,2.85889595]
[1771883070887,12.72502522,78.586,78.551,2.85889595]
[1771883071503,12.72502522,78.586,78.561,2.85889595]
[1771883072417,12.72502522,78.586,78.54,0.2]
[1771883072711,12.72502522,78.586,78.48,14.67554887]
[1771883072712,14.67554887,78.55,78.48,14.67554887]
[1771883072884,14.67554887,78.52,78.49,2.85889595]
[1771883073088,14.67554887,78.51,78.49,2.85889595]
[1771883073391,14.67554887,78.52,78.497,2.85889595]
[1771883073713,14.67554887,78.52,78.48,14.67554887]
[1771883073714,14.67554887,78.55,78.511,2.85889595]
[1771883074015,14.67554887,78.55,78.521,2.85889595]
[1771883074215,15.6760559,78.55,78.521,2.85889595]
[1771883074402,13.73141385,78.549,78.521,2.85889595]
[1771883074598,13.73141385,78.549,78.485,50.96496657]
[1771883074599,14.67554887,78.53,78.512,2.85889595]
[1771883074926,14.67554887,78.52,78.496,12.7394498]
[1771883075209,14.67554887,78.54,78.501,2.85889595]
[1771883075813,44.55817387,78.549,78.5,27.61433193]
[1771883075814,1.01078351,78.548,78.511,2.85889595]
[1771883076316,14.67554887,78.53,78.503,2.85889595]
[1771883077123,14.67554887,78.53,78.505,2.85889595]
[1771883079320,14.67554887,78.53,78.506,15.59677585]
[1771883079527,13.7848784,78.529,78.501,2.85889595]
[1771883079904,13.7848784,78.529,78.5,0.2]
[1771883079905,14.67554887,78.52,78.5,0.2]
[1771883080619,15.73596349,78.52,78.5,0.2]
[1771883081317,14.67554887,78.52,78.501,2.85889595]
[1771883081625,12.73577095,78.519,78.501,2.85889595]
[1771883082629,14.67554887,78.53,78.502,2.85889595]
[1771883082810,1.07951831,78.529,78.502,2.85889595]
[1771883083114,1.07951831,78.529,78.5,0.2]
[1771883083115,1.08887683,78.519,78.5,0.2]
[1771883083633,1.08887683,78.519,78.465,5.36086188]
[1771883083634,1.08887683,78.509,78.472,2.85889595]
[1771883083812,14.67554887,78.5,78.472,2.85889595]
[1771883086628,1.11648161,78.499,78.474,2.85889595]
[1771883088213,1.11648161,78.499,78.468,3.11753452]
[1771883089234,14.67554887,78.49,78.468,3.11753452]
[1771883089808,1.1602818,78.497,78.468,3.11753452]
[1771883090013,14.67554887,78.49,78.468,3.11753452]
[1771883091033,14.67554887,78.49,78.46,14.67554887]
[1771883091034,14.67554887,78.49,78.469,15.86142064]
[1771883091735,1.16879656,78.499,78.47,3.11753452]
[1771883091929,14.67554887,78.49,78.47,3.11753452]
[1771883092531,1.17717476,78.51,78.471,3.11753452]
[1771883092833,14.67554887,78.51,78.471,3.11753452]
[1771883093036,1.18545355,78.509,78.471,3.11753452]
[1771883093734,12.7375554,78.508,78.481,3.11753452]
[1771883097131,1.18545355,78.509,78.482,12.74177518]
[1771883097341,1.18545355,78.509,78.483,3.11753452]
[1771883098925,12.73739316,78.509,78.484,12.74145048]
[1771883099124,12.73739316,78.509,78.485,3.11753452]
[1771883100130,14.67554887,78.52,78.491,3.11753452]
[1771883100317,1.2408528,78.509,78.485,3.11753452]
[1771883100840,14.67554887,78.51,78.485,3.11753452]
[1771883101023,14.67554887,78.51,78.487,3.11753452]
[1771883103250,14.67554887,78.51,78.488,15.85833566]
[1771883103446,1.2631927,78.499,78.475,3.11753452]
[1771883104834,14.67554887,78.49,78.464,44.60644371]
[1771883105023,1.27769298,78.489,78.454,3.11753452]
[1771883106147,1.27769298,78.489,78.456,3.11753452]
[1771883108342,5.49674199,78.48,78.456,3.11753452]
[1771883108545,5.49674199,78.47,78.457,15.86336981]
[1771883108749,5.49674199,78.47,78.452,3.11753452]
[1771883108946,5.49674199,78.48,78.452,3.11753452]
[1771883109150,5.49674199,78.49,78.452,3.11753452]
[1771883109349,5.49674199,78.49,78.461,3.11753452]
[1771883109555,5.49674199,78.48,78.461,3.11753452]
[1771883110051,5.49674199,78.49,78.461,3.11753452]
[1771883110432,6.79973758,78.47,78.437,3.11753452]
[1771883110638,5.49674199,78.45,78.438,15.86645723]
[1771883110956,5.49674199,78.45,78.439,3.11753452]
[1771883113241,5.49674199,78.45,78.439,15.86617099]
[1771883114639,5.49674199,78.45,78.428,3.11753452]
[1771883114840,6.80793502,78.45,78.428,3.11753452]
[1771883115157,5.49674199,78.45,78.428,3.11753452]
[1771883116256,1.31515983,78.449,78.428,3.11753452]
[1771883116436,5.49674199,78.45,78.428,3.11753452]
[1771883116765,5.49674199,78.45,78.43,3.11753452]
[1771883118457,5.49674199,78.46,78.431,3.02784359]
[1771883118967,5.49674199,78.46,78.433,3.02784359]
[1771883121071,5.49674199,78.46,78.435,3.256576]
[1771883122267,5.69674199,78.46,78.435,3.256576]
[1771883122484,0.2,78.46,78.435,3.256576]
[1771883122860,5.69674199,78.46,78.435,3.256576]
[1771883123261,0.2,78.45,78.437,3.256576]
[1771883124873,5.49674199,78.47,78.439,3.256576]
[1771883125468,1.53544069,78.469,78.439,3.256576]
[1771883125774,1.53544069,78.469,78.438,44.6212295]
[1771883125775,1.53544069,78.479,78.451,3.256576]
[1771883128873,44.58257966,78.506,78.461,3.256576]
[1771883128874,1.54266693,78.494,78.461,3.256576]
[1771883129251,0.2,78.479,78.461,3.256576]
[1771883130267,0.2,78.479,78.463,3.256576]
[1771883131481,0.2,78.479,78.464,12.7446982]
[1771883132472,0.2,78.479,78.461,31.86281134]
[1771883132473,1.9480402,78.479,78.461,12.7451855]
[1771883137505,0.95385101,78.479,78.461,12.7451855]
[1771883137901,5.49531193,78.47,78.443,35.1268419]
[1771883138177,5.49531193,78.47,78.445,3.256576]
[1771883138560,5.49531193,78.47,78.444,12.74794758]
[1771883138755,5.49531193,78.46,78.444,12.74794758]
[1771883139183,5.49531193,78.46,78.44,3.256576]
[1771883139386,5.49531193,78.46,78.437,12.74899434]
[1771883139561,0.96770481,78.459,78.437,12.74899434]
[1771883140265,0.96998779,78.469,78.438,3.256576]
[1771883141485,0.96998779,78.469,78.437,12.74899434]
[1771883141486,5.49531193,78.46,78.44,3.256576]
[1771883144584,5.49531193,78.46,78.441,16.00501112]
[1771883145179,6.47649023,78.46,78.441,12.74843512]
[1771883145383,6.47649023,78.46,78.442,3.256576]
[1771883146573,6.47649023,78.46,78.443,12.74811009]
[1771883147993,6.47649023,78.46,78.443,3.23509138]
[1771883151078,6.47649023,78.46,78.444,12.74794758]
[1771883152096,3.11514827,78.449,78.42,0.1]
[1771883152395,5.49531193,78.44,78.421,12.75168641]
[1771883152599,3.11514827,78.445,78.421,12.75168641]
[1771883154189,3.11514827,78.445,78.423,15.98645258]
[1771883154593,3.11514827,78.445,78.424,3.23509138]
[1771883155101,12.74610926,78.456,78.424,3.23509138]
[1771883155395,5.49531193,78.46,78.431,3.23509138]
[1771883155694,3.11514827,78.459,78.431,3.23509138]
[1771883156282,3.11514827,78.457,78.433,3.23509138]
[1771883156699,5.49531193,78.45,78.433,3.23509138]
[1771883159406,5.49531193,78.45,78.434,12.74957288]
[1771883159705,5.49531193,78.45,78.434,15.98466426]
[1771883161299,5.49531193,78.45,78.435,3.23509138]
[1771883161806,8.6104602,78.45,78.436,12.74924779]
[1771883162310,3.11514827,78.455,78.437,3.23509138]
[1771883162515,5.49531193,78.46,78.437,3.23509138]
[1771883162694,3.11514827,78.479,78.441,3.23509138]
[1771883163009,3.11514827,78.469,78.441,3.23509138]
[1771883164524,3.11514827,78.469,78.443,3.23509138]
[1771883169140,3.11514827,78.469,78.444,15.98303896]
[1771883169510,3.11514827,78.469,78.445,3.23509138]
[1771883170030,3.11514827,78.469,78.446,12.74762256]
[1771883170322,3.11514827,78.469,78.447,3.23509138]
[1771883173933,3.11514827,78.459,78.431,3.23509138]
[1771883174129,3.11514827,78.459,78.432,3.23509138]
[1771883176120,3.11514827,78.459,78.434,3.23509138]
[1771883177136,3.11514827,78.478,78.441,3.23509138]
[1771883177337,31.85346982,78.485,78.451,3.23509138]
[1771883177338,15.85773527,78.477,78.451,3.23509138]
[1771883177521,3.11514827,78.476,78.451,3.23509138]
[1771883178533,3.05487586,78.474,78.452,3.33608249]
[1771883181444,15.75778262,78.473,78.452,3.33608249]
[1771883182124,3.0145461,78.472,78.452,3.33608249]
[1771883184450,3.0145461,78.472,78.454,3.33906958]
[1771883184747,15.75623096,78.483,78.454,3.33906958]
[1771883184934,3.0145461,78.482,78.454,3.33906958]
[1771883185544,3.0145461,78.482,78.456,3.33906958]
[1771883186441,3.0145461,78.48,78.456,3.33906958]
[1771883188826,3.0145461,78.48,78.457,12.74583529]
[1771883189027,3.0145461,78.48,78.458,3.33906958]
[1771883189228,3.0145461,78.499,78.461,3.33906958]
[1771883191247,3.0145461,78.489,78.462,12.74502306]
[1771883191551,3.0145461,78.489,78.461,3.33906958]
[1771883192439,3.0145461,78.489,78.462,3.33906958]
[1771883194250,3.0145461,78.489,78.435,69.10724699]
[1771883194251,3.0145461,78.469,78.44,3.33906958]
[1771883194552,3.0145461,78.469,78.441,3.33906958]
[1771883195633,3.0145461,78.479,78.441,3.33906958]
[1771883197753,3.0145461,78.477,78.443,3.33906958]
[1771883199041,5.49586613,78.46,78.426,3.33906958]
[1771883199247,12.74242462,78.478,78.426,3.33906958]
[1771883199248,3.0145461,78.449,78.426,3.33906958]
[1771883199833,3.0145461,78.447,78.426,3.33906958]
[1771883200055,12.74729757,78.448,78.42,0.1]
[1771883200056,3.0145461,78.439,78.42,0.1]
[1771883202150,12.7479569,78.444,78.42,3.43906958]
[1771883202553,3.0145461,78.443,78.42,3.43906958]
[1771883204558,3.0145461,78.448,78.422,3.33906958]
[1771883205454,3.0145461,78.429,78.41,0.2]
[1771883205647,3.0145461,78.419,78.392,3.33906958]
[1771883205960,3.0145461,78.409,78.39,0.1]
[1771883206340,12.75380063,78.408,78.39,0.1]
[1771883206545,3.0145461,78.407,78.39,0.1]
[1771883208259,3.10779648,78.427,78.391,3.33669439]
[1771883208465,15.85856604,78.427,78.391,3.33669439]
[1771883209469,15.85856604,78.427,78.393,3.33669439]
[1771883211659,5.49586613,78.42,78.395,3.33669439]
[1771883212173,3.10779648,78.419,78.395,3.33669439]
[1771883214675,0.39291942,78.403,78.395,3.33669439]
[1771883214980,0.39291942,78.403,78.396,12.75575284]
[1771883215175,0.39291942,78.403,78.397,3.33669439]
[1771883216682,3.10779648,78.419,78.398,16.09212182]
[1771883217558,3.10779648,78.419,78.399,3.33669439]
[1771883218763,5.49586613,78.42,78.401,3.33669439]
[1771883219381,0.1,78.55,78.401,3.33669439]
[1771883219382,5.49586613,78.43,78.401,3.33669439]
[1771883220563,5.49586613,78.45,78.411,3.33669439]
[1771883220780,18.24295104,78.45,78.421,3.33669439]
[1771883221282,5.49586613,78.44,78.421,3.33669439]
[1771883221979,5.49586613,78.44,78.423,3.33669439]
[1771883225182,5.49586613,78.44,78.425,3.33669439]
[1771883225374,3.10779648,78.448,78.425,3.33669439]
[1771883227269,3.10779648,78.448,78.427,3.33669439]
[1771883230672,3.10779648,78.448,78.428,16.08724266]
[1771883231890,5.49586613,78.46,78.431,3.33669439]
[1771883232073,3.10779648,78.468,78.431,3.33669439]
[1771883233089,15.85200742,78.467,78.433,3.33669439]
[1771883233676,3.10779648,78.466,78.433,3.33669439]
[1771883233878,12.74421094,78.467,78.433,3.33669439]
[1771883235176,15.85200742,78.467,78.435,3.33669439]
[1771883235972,12.74421094,78.467,78.435,3.33669439]
[1771883236172,3.10779648,78.478,78.442,5.36086188]
[1771883236490,3.10779648,78.478,78.443,3.33669439]
[1771883236694,5.49586613,78.47,78.443,3.33669439]
[1771883238591,5.49586613,78.47,78.445,3.19408371]
[1771883238778,3.69383402,78.499,78.4,5.49586613]
[1771883238779,3.33341408,78.459,78.431,3.19408371]
[1771883239089,8.82928021,78.45,78.431,3.19408371]
[1771883239295,3.33341408,78.456,78.431,3.19408371]
[1771883240186,5.49586613,78.46,78.431,3.19408371]
[1771883241276,5.49586613,78.46,78.43,5.49586613]
[1771883241277,5.49586613,78.46,78.433,3.06423542]
[1771883244276,5.49586613,78.46,78.435,3.06423542]
[1771883245094,15.86686145,78.464,78.435,3.06423542]
[1771883246894,3.12214337,78.463,78.437,3.06423542]
[1771883247092,3.12214337,78.468,78.437,3.06423542]
[1771883249300,5.49586613,78.47,78.441,3.06423542]
[1771883249800,3.12214337,78.484,78.451,3.06423542]
[1771883249977,8.6180095,78.48,78.451,3.06423542]
[1771883250181,3.12214337,78.479,78.451,3.06423542]
[1771883251381,3.12214337,78.479,78.453,3.06423542]